bitfinex/quotes_ETHUSD_20260304
["timestamp","ask_amount","ask_price","bid_price","bid_amount"]
[1772618964944,4.11944235,2091.7,2089.8,4.05241369]
[1772618965154,4.11944235,2091.7,2089.5,1.19645848]
[1772618965155,4.11944235,2091.6,2089.9,0.42808762]
[1772618965463,4.11944235,2091.6,2090.0,1.19617224]
[1772618965464,5.31475671,2091.5,2090.0,1.19617224]
[1772618965843,4.11944235,2091.4,2090.0,1.19617224]
[1772618966436,1.522,2091.3,2090.0,1.19617224]
[1772618966639,4.11944235,2091.4,2090.0,1.19617224]
[1772618966843,5.64144235,2091.3,2090.0,1.19617224]
[1772618967061,4.11944235,2091.2,2090.0,1.19617224]
[1772618967261,1.19554301,2091.1,2089.5,1.19645848]
[1772618967570,5.31498536,2091.1,2089.6,0.42903798]
[1772618967764,5.31498536,2091.1,2089.7,0.42903798]
[1772618967964,5.31498536,2091.1,2089.8,0.42903798]
[1772618968167,4.11944235,2091.6,2089.9,0.42903798]
[1772618968374,5.31475671,2091.5,2090.0,0.42903798]
[1772618968674,5.31475671,2091.5,2089.6,4.20189868]
[1772618968851,5.31475671,2091.5,2089.7,0.42923694]
[1772618969050,5.31475671,2091.5,2089.8,0.42923694]
[1772618969271,4.11944235,2091.4,2089.9,0.42923694]
[1772618969471,4.11944235,2091.2,2090.0,1.62540918]
[1772618969641,4.11944235,2091.2,2090.1,0.429364]
[1772618969846,4.11944235,2091.2,2090.0,1.19617224]
[1772618970175,4.11944235,2090.9,2088.2,4.05241369]
[1772618970378,4.11944235,2090.7,2088.6,4.05241369]
[1772618970586,4.11944235,2090.5,2088.7,0.43010572]
[1772618970785,1.34491367,2091.3,2088.2,1.5598558]
[1772618970786,4.11944235,2090.1,2088.2,4.78871342]
[1772618970944,4.11944235,2090.1,2088.3,0.43037714]
[1772618971138,4.11944235,2090.1,2088.4,0.43037714]
[1772618971360,5.31559981,2090.1,2088.6,1.19697404]
[1772618971693,4.78366296,2090.5,2088.8,4.20189868]
[1772618971694,1.19588615,2090.5,2088.8,4.20189868]
[1772618971868,10.42790123,2090.6,2089.8,0.001]
[1772618971869,4.11944235,2090.6,2089.8,0.001]
[1772618972067,4.11944235,2091.1,2089.8,0.001]
[1772618972983,4.11944235,2091.1,2088.8,1.412]
[1772618973187,4.11944235,2091.1,2088.9,0.43089058]
[1772618973361,4.11944235,2090.9,2089.1,1.34617255]
[1772618973562,4.11944235,2090.9,2089.2,0.43089058]
[1772618973762,4.11944235,2090.7,2088.4,4.78828329]
[1772618973963,4.11944235,2090.7,2088.5,1.62896577]
[1772618974163,4.11944235,2090.3,2088.6,0.43193441]
[1772618974376,4.11944235,2090.1,2088.7,0.43193441]
[1772618974590,0.065536,2090.5,2088.4,1.19705653]
[1772618974591,4.11944235,2089.9,2088.8,0.43193441]
[1772618974801,4.11944235,2089.8,2088.4,1.19705653]
[1772618974982,4.11944235,2089.8,2088.5,0.43320935]
[1772618975283,4.11944235,2089.8,2088.6,0.43320935]
[1772618975477,4.11944235,2089.8,2088.7,1.63012609]
[1772618975654,4.11944235,2089.8,2088.8,0.43320935]
[1772618976685,4.11944235,2089.8,2088.6,1.19697227]
[1772618976874,4.11944235,2089.8,2088.7,0.43333401]
[1772618977073,4.11944235,2089.8,2088.6,1.19697227]
[1772618977258,5.64744235,2089.8,2088.7,0.43320896]
[1772618977458,4.11944235,2089.6,2088.2,4.78861924]
[1772618977658,4.11944235,2089.6,2088.3,0.43332484]
[1772618977887,4.11944235,2089.6,2088.4,0.43332484]
[1772618978185,1.19628772,2089.8,2088.5,0.43332484]
[1772618978485,5.31573007,2089.8,2088.6,0.43332484]
[1772618978657,4.11944235,2089.7,2088.7,0.43332484]
[1772618978858,4.11944235,2089.7,2088.2,4.78861924]
[1772618979059,4.11944235,2089.7,2088.3,0.43366582]
[1772618979288,4.11944235,2089.7,2088.0,4.78917569]
[1772618979289,4.11944235,2089.7,2088.4,0.43402678]
[1772618979485,4.11944235,2089.5,2087.7,4.78979779]
[1772618979687,4.11944235,2089.5,2087.8,0.43413651]
[1772618979892,4.11944235,2089.3,2087.9,0.43413651]
[1772618980107,4.11944235,2089.3,2088.0,0.43413651]
[1772618980267,4.11944235,2089.3,2087.6,1.19750739]
[1772618980467,4.11944235,2089.3,2087.7,0.43428357]
[1772618980778,4.11944235,2089.3,2087.5,2.61158173]
[1772618981082,4.11944235,2089.3,2087.6,0.43455907]
[1772618981387,4.11944235,2089.1,2087.5,1.19760085]
[1772618981592,4.11944235,2088.9,2087.6,0.43421474]
[1772618981793,4.11944235,2088.9,2087.2,0.001]
[1772618982090,4.11944235,2088.9,2087.3,0.43422731]
[1772618982260,4.11944235,2088.7,2087.4,0.43422731]
[1772618982460,4.11944235,2088.7,2087.2,0.001]
[1772618982461,5.64844235,2088.6,2087.2,0.001]
[1772618982769,5.64844235,2088.6,2087.3,0.43372458]
[1772618982965,4.11944235,2088.5,2087.2,0.001]
[1772618983174,4.11944235,2088.5,2087.3,0.43367727]
[1772618983375,4.11944235,2088.5,2087.2,0.001]
[1772618983690,4.11944235,2088.3,2087.2,0.001]
[1772618983887,4.78775398,2088.7,2087.2,0.001]
[1772618983888,5.31634082,2088.8,2087.3,0.43315466]
[1772618984189,4.11944235,2088.7,2087.4,0.43315466]
[1772618984367,4.11944235,2088.7,2087.2,0.001]
[1772618985093,4.11944235,2088.7,2087.3,4.48530646]
[1772618985256,4.11944235,2089.2,2087.4,4.48530646]
[1772618985459,1.19668756,2089.1,2087.6,1.19754742]
[1772618985654,5.31611487,2089.2,2087.7,4.48530646]
[1772618985899,4.11944235,2089.1,2087.8,0.43289277]
[1772618986097,4.11944235,2089.1,2087.9,0.43289277]
[1772618986295,4.11944235,2089.1,2087.6,1.19754742]
[1772618986502,4.11944235,2089.1,2087.7,0.43248378]
[1772618986668,4.11944235,2089.1,2087.6,1.19754742]
[1772618986864,4.11944235,2089.1,2087.7,0.43279558]
[1772618987203,5.64844235,2089.1,2087.6,5.24996111]
[1772618987408,4.11944235,2089.0,2087.7,0.43299777]
[1772618987564,4.11944235,2089.0,2087.6,1.19754742]
[1772618987565,4.11944235,2088.8,2087.5,1.19760479]
[1772618987976,1.19680214,2088.9,2087.6,0.4329671]
[1772618988180,5.31612991,2089.1,2087.7,0.4329671]
[1772618988467,5.31612991,2089.1,2087.8,0.4329671]
[1772618988667,3.73028129,2089.0,2087.5,1.19760479]
[1772618988862,3.73028129,2089.0,2087.6,0.43320554]
[1772618989100,3.73028129,2089.0,2087.5,1.19760479]
[1772618989285,3.73028129,2089.0,2087.4,1.19861821]
[1772618989478,3.73028129,2089.0,2087.4,0.001]
[1772618989479,3.73028129,2088.8,2087.4,0.001]
[1772618989679,3.73028129,2088.8,2087.5,0.43432661]
[1772618989860,3.73028129,2088.8,2087.6,0.43432661]
[1772618990061,3.73028129,2088.8,2087.4,0.001]
[1772618990296,3.73028129,2088.8,2087.5,0.43436657]
[1772618990482,3.73028129,2088.8,2087.6,0.43436657]
[1772618990483,1.528,2088.7,2087.6,0.43436657]
[1772618990798,1.528,2088.7,2087.7,0.43436657]
[1772618990977,1.528,2088.7,2087.8,0.43436657]
[1772618991184,1.528,2088.7,2087.4,0.001]
[1772618991390,3.73028129,2089.3,2087.6,3.83863279]
[1772618991602,3.73028129,2089.1,2087.7,1.6321892]
[1772618991903,3.73028129,2089.1,2087.8,0.43469914]
[1772618993694,3.73028129,2088.9,2087.8,1.63212623]
[1772618993898,1.528,2088.8,2087.9,0.43469914]
[1772618994204,3.73028129,2088.7,2087.4,1.19863164]
[1772618994403,3.73028129,2088.7,2087.4,1.19866054]
[1772618994607,3.73028129,2088.7,2087.4,0.001]
[1772618995004,3.73028129,2088.7,2087.4,1.19865053]
[1772618995209,5.25728129,2088.6,2087.4,1.19865053]
[1772618995599,1.19703136,2088.5,2087.4,0.001]
[1772618996489,2.72403136,2088.5,2087.4,0.001]
[1772618996833,3.73028129,2088.4,2087.4,0.001]
[1772618997040,3.73028129,2088.8,2087.4,3.83963279]
[1772618997216,4.92716476,2088.8,2087.4,3.83963279]
[1772618997710,4.92716476,2088.8,2087.5,1.19760479]
[1772618998134,6.45316476,2088.8,2087.5,1.19760479]
[1772618998598,4.92716476,2088.8,2087.5,5.03623758]
[1772619000730,3.73028129,2088.7,2087.4,1.19861954]
[1772619000901,3.73028129,2088.7,2087.6,0.001]
[1772619001100,3.73028129,2088.7,2087.4,0.001]
[1772619001336,3.73028129,2088.5,2087.2,0.001]
[1772619001539,3.73028129,2088.3,2087.2,0.001]
[1772619001875,3.73028129,2087.6,2087.2,0.001]
[1772619002082,3.73028129,2087.4,2086.2,0.39853671]
[1772619002380,2.2225423,2087.6,2086.3,0.002]
[1772619002381,3.73028129,2087.2,2086.3,0.002]
[1772619002550,1.526,2087.3,2086.3,0.002]
[1772619003093,3.73128129,2087.6,2086.3,0.002]
[1772619003241,0.001,2087.6,2086.3,3.84063279]
[1772619003767,0.001,2087.6,2086.4,1.19823619]
[1772619004446,0.001,2087.6,2086.5,3.84063279]
[1772619004635,0.001,2088.0,2086.8,0.001]
[1772619004836,1.526,2088.3,2086.9,3.83863279]
[1772619005266,2.72317224,2088.3,2087.0,0.001]
[1772619005763,3.73028129,2088.0,2087.0,0.001]
[1772619006176,1.19663028,2089.2,2087.2,3.83863279]
[1772619006471,3.73028129,2089.5,2087.6,3.83863279]
[1772619006636,3.73028129,2089.3,2087.7,0.43788756]
[1772619006970,2.8482446,2089.2,2087.0,3.83863279]
[1772619007143,2.8482446,2089.2,2087.4,3.83863279]
[1772619007144,3.73028129,2089.1,2087.4,3.83863279]
[1772619007341,2.8482446,2089.0,2087.4,3.83863279]
[1772619007536,6.57852589,2089.0,2087.4,3.83863279]
[1772619007743,1.19685944,2088.8,2087.5,1.19760479]
[1772619007959,4.92712531,2088.9,2087.5,1.19760479]
[1772619008155,5.25628129,2088.9,2087.5,1.19760479]
[1772619008356,1.526,2088.9,2087.6,3.83863279]
[1772619008665,2.72281474,2088.9,2087.6,3.83863279]
[1772619008895,1.526,2088.9,2087.6,3.83863279]
[1772619009478,1.19671944,2089.1,2087.6,3.83863279]
[1772619009659,2.72265127,2089.2,2087.6,3.83863279]
[1772619009986,2.72265127,2089.2,2087.7,1.19749006]
[1772619010495,0.002,2089.6,2088.2,3.98811778]
[1772619010654,0.002,2089.8,2088.7,3.83863279]
[1772619011153,0.002,2089.8,2088.8,5.25054556]
[1772619011356,0.002,2089.8,2088.9,1.41191277]
[1772619011856,0.002,2089.8,2088.9,2.60867604]
[1772619013880,0.002,2089.8,2088.9,6.44730883]
[1772619014178,0.002,2089.8,2088.9,2.60867604]
[1772619014677,3.73228129,2089.8,2088.9,1.2940499]
[1772619014877,1.524,2089.7,2088.9,1.2940499]
[1772619015250,5.25428129,2089.7,2088.9,1.2940499]
[1772619015481,1.524,2089.6,2088.9,1.2940499]
[1772619015659,0.002,2089.6,2088.9,1.2940499]
[1772619015986,3.73028129,2089.5,2087.7,1.19749006]
[1772619016870,3.73028129,2089.3,2087.7,1.19749006]
[1772619017069,1.523,2089.2,2087.7,5.03612285]
[1772619017372,5.25328129,2089.3,2087.7,5.03612285]
[1772619017583,3.73028129,2089.3,2087.7,5.03612285]
[1772619017789,5.25328129,2089.3,2087.7,5.03612285]
[1772619018183,4.92686092,2089.3,2087.8,3.83863279]
[1772619018581,4.92686092,2089.3,2087.7,1.19749006]
[1772619018582,3.63327295,2089.2,2087.7,1.19749006]
[1772619018789,3.63327295,2089.0,2087.7,1.19749006]
[1772619018970,3.63327295,2089.0,2087.5,4.79037169]
[1772619019591,3.63327295,2088.8,2087.4,1.66320781]
[1772619019792,3.63327295,2088.6,2087.4,2.86086328]
[1772619019994,3.63327295,2088.4,2087.4,1.66320781]
[1772619020308,3.63327295,2088.2,2087.4,1.66320781]
[1772619020476,1.197146,2088.3,2087.4,1.66320781]
[1772619020477,2.73652703,2087.9,2087.4,1.66320781]
[1772619020681,3.63327295,2087.8,2087.4,1.66320781]
[1772619020875,2.73652703,2087.9,2087.4,1.66320781]
[1772619020876,3.63327295,2087.6,2087.4,1.66320781]
[1772619021074,1.521,2087.5,2087.4,1.66320781]
[1772619021275,1.521,2087.8,2087.4,1.66320781]
[1772619021475,2.73652703,2087.9,2087.4,1.66320781]
[1772619021677,4.25752703,2087.9,2087.4,1.66320781]
[1772619022081,5.45494354,2087.9,2087.4,1.66320781]
[1772619022305,5.45494354,2087.9,2086.8,0.001]
[1772619022610,1.521,2087.8,2086.8,1.19900454]
[1772619022807,3.59290113,2087.7,2086.8,0.001]
[1772619023103,1.52,2087.6,2086.8,0.001]
[1772619023310,3.59290113,2087.5,2086.8,0.001]
[1772619023516,1.52,2087.4,2086.8,0.001]
[1772619024017,3.59290113,2087.3,2086.8,0.001]
[1772619024317,3.59290113,2087.1,2086.8,0.001]
[1772619024624,3.59290113,2087.1,2086.3,0.002]
[1772619024920,5.11290113,2087.0,2086.3,0.002]
[1772619025118,3.59290113,2086.9,2085.7,0.75861913]
[1772619025346,3.59290113,2086.9,2085.8,0.002]
[1772619025487,3.59290113,2086.8,2085.8,0.002]
[1772619025688,1.52,2086.7,2085.8,0.002]
[1772619025891,3.59290113,2086.8,2085.8,0.002]
[1772619026091,1.52,2086.6,2085.8,0.002]
[1772619026313,1.52,2086.9,2085.9,0.002]
[1772619026516,0.001,2087.2,2085.9,0.002]
[1772619026688,1.52,2087.1,2085.9,3.88775976]
[1772619027019,1.52,2087.2,2085.9,3.88775976]
[1772619027886,0.001,2087.2,2085.9,3.88775976]
[1772619028214,0.001,2087.2,2086.0,1.19846596]
[1772619028627,0.001,2087.2,2086.1,3.88775976]
[1772619028989,0.001,2087.2,2086.1,3.88875976]
[1772619029194,0.001,2087.2,2086.5,3.88575976]
[1772619029424,1.02,2087.8,2086.5,3.88575976]
[1772619029621,1.19703136,2088.5,2086.6,4.03624475]
[1772619029822,3.90963638,2088.6,2086.6,4.03624475]
[1772619030024,0.31673525,2088.6,2086.8,4.03524475]
[1772619030321,1.519,2088.8,2087.0,4.03524475]
[1772619030512,1.519,2088.8,2087.1,0.001]
[1772619030513,2.71587632,2088.8,2087.1,0.001]
[1772619030723,1.519,2088.8,2087.2,3.88575976]
[1772619031028,3.59290113,2089.0,2087.2,3.88575976]
[1772619031321,1.518,2088.9,2087.3,3.88675976]
[1772619031545,1.518,2088.9,2087.3,3.88575976]
[1772619031728,3.59290113,2089.0,2087.4,0.001]
[1772619031926,1.518,2088.9,2087.5,3.88575976]
[1772619032124,0.002,2089.3,2087.4,0.001]
[1772619032125,0.002,2089.3,2087.9,3.88575976]
[1772619032451,0.002,2089.3,2088.3,3.88575976]
[1772619032816,0.002,2089.3,2088.4,0.001]
[1772619033414,1.518,2089.2,2088.0,1.197318]
[1772619033614,1.518,2089.2,2088.1,0.001]
[1772619034437,2.71560386,2089.3,2088.1,0.001]
[1772619035238,6.30850499,2089.3,2088.1,0.001]
[1772619035944,3.59290113,2089.2,2088.1,0.001]
[1772619036320,4.78955546,2089.2,2088.1,0.001]
[1772619036514,1.516,2089.1,2088.1,0.001]
[1772619036949,0.002,2089.3,2088.1,0.001]
[1772619037154,1.518,2089.3,2088.1,0.001]
[1772619037337,2.71457803,2089.3,2088.1,0.001]
[1772619037634,5.10890113,2089.2,2088.1,0.001]
[1772619038442,4.78958869,2089.1,2088.1,0.001]
[1772619038752,3.59290113,2089.0,2087.4,1.86637913]
[1772619038980,1.515,2088.9,2087.5,3.88575976]
[1772619039135,3.59090113,2089.0,2087.5,3.88575976]
[1772619039538,1.515,2088.9,2087.5,3.88575976]
[1772619040057,3.59090113,2089.0,2087.5,3.88575976]
[1772619040448,3.59090113,2089.0,2087.6,1.19754742]
[1772619040648,4.78767016,2089.0,2087.6,1.19754742]
[1772619041262,1.514,2089.1,2087.7,3.88575976]
[1772619041858,1.513,2089.2,2087.7,4.30742116]
[1772619042171,1.513,2089.2,2087.7,3.88575976]
[1772619042467,0.002,2089.3,2087.9,3.88575976]
[1772619042681,0.002,2088.8,2087.9,3.88575976]
[1772619043741,0.002,2088.8,2087.5,1.19856068]
[1772619043742,3.59490113,2088.8,2087.5,1.19856068]
[1772619044370,3.59490113,2088.8,2087.5,0.001]
[1772619044572,3.59290113,2088.6,2087.4,1.86637913]
[1772619044744,3.59290113,2088.4,2087.4,1.86637913]
[1772619045073,1.512,2088.3,2087.4,1.86637913]
[1772619045372,3.59290113,2088.1,2087.4,1.86637913]
[1772619045808,3.59290113,2088.1,2087.4,1.80637913]
[1772619045957,1.512,2088.0,2087.4,1.80637913]
[1772619046270,1.512,2088.0,2087.4,3.0040351]
[1772619046506,4.78997698,2088.5,2087.4,3.0040351]
[1772619046680,1.512,2088.1,2087.4,3.0040351]
[1772619047264,1.511,2088.1,2087.4,3.0040351]
[1772619047605,4.78993904,2088.5,2087.4,3.0040351]
[1772619047805,3.59290113,2088.4,2087.4,1.80637913]
[1772619048006,3.59290113,2088.2,2087.4,1.80637913]
[1772619048508,3.63818941,2088.6,2087.4,3.00403999]
[1772619048675,2.84176006,2088.5,2087.4,3.00403999]
[1772619049175,5.14818941,2088.4,2087.4,1.80637913]
[1772619049377,5.14818941,2088.4,2087.4,3.00403745]
[1772619049802,5.14818941,2088.4,2087.4,1.80637913]
[1772619049966,3.63818941,2088.4,2087.4,3.00403634]
[1772619050182,1.51,2088.3,2087.4,3.00403634]
[1772619050373,1.51,2088.3,2087.4,1.80637913]
[1772619050572,2.70715949,2088.3,2087.4,1.80637913]
[1772619050772,1.51,2088.3,2087.4,1.80637913]
[1772619051011,6.34534537,2088.3,2087.4,1.80637913]
[1772619051175,3.63818941,2088.2,2087.4,1.80637913]
[1772619051372,3.63818941,2088.0,2087.3,0.001]
[1772619051991,6.48127358,2087.9,2087.3,0.001]
[1772619052301,1.508,2087.8,2087.3,0.001]
[1772619052507,6.48120701,2087.7,2086.3,1.1982503]
[1772619052679,1.19754742,2087.6,2086.3,1.1982503]
[1772619052999,3.63818941,2087.4,2086.2,2.88088908]
[1772619053399,1.507,2087.3,2086.2,2.88088908]
[1772619053612,1.507,2087.3,2086.2,1.68257585]
[1772619053613,2.84340044,2087.2,2086.2,1.68257585]
[1772619053909,6.48158985,2087.1,2086.1,1.19940287]
[1772619054105,1.507,2087.1,2086.1,1.19937922]
[1772619054309,1.507,2087.0,2086.1,1.19937922]
[1772619054621,1.507,2087.0,2086.1,0.001]
[1772619054821,1.506,2086.9,2086.1,0.001]
[1772619054985,1.19770475,2087.4,2086.1,0.001]
[1772619055184,4.34908008,2087.3,2086.1,0.001]
[1772619055384,1.506,2087.3,2086.1,0.001]
[1772619055605,3.63818941,2087.4,2086.1,0.001]
[1772619055819,4.34974859,2087.3,2086.1,0.001]
[1772619056106,1.506,2087.3,2086.1,0.001]
[1772619056281,2.84496292,2087.2,2086.3,0.001]
[1772619056881,1.19783431,2087.1,2086.3,0.001]
[1772619057409,3.63818941,2087.4,2086.3,0.001]
[1772619057723,3.63818941,2087.4,2086.3,3.72293921]
[1772619057724,1.505,2087.4,2086.3,3.72293921]
[1772619059103,1.19768156,2087.4,2086.3,1.19926076]
[1772619059326,1.19764629,2087.5,2086.3,1.19926076]
[1772619059529,1.504,2087.3,2086.3,1.19926076]
[1772619059897,4.83578069,2087.6,2086.3,4.92119997]
[1772619060119,1.503,2087.2,2086.3,4.92119997]
[1772619060437,1.503,2087.2,2086.3,0.001]
[1772619060596,1.19759128,2087.6,2086.3,1.19928559]
[1772619060800,3.63818941,2087.4,2086.3,0.001]
[1772619061020,7.67841908,2087.3,2086.3,0.001]
[1772619061226,4.83590895,2087.3,2086.3,0.001]
[1772619061425,3.63818941,2087.1,2086.1,0.001]
[1772619062139,3.41924772,2087.4,2086.1,0.001]
[1772619062343,1.19758469,2087.6,2086.1,3.72293921]
[1772619062500,1.19758469,2087.6,2086.2,3.72193921]
[1772619062501,1.502,2087.5,2086.2,3.72193921]
[1772619063141,2.69962477,2087.5,2086.4,3.72193921]
[1772619063342,8.42773413,2087.9,2086.4,3.72193921]
[1772619063343,4.78980428,2087.8,2086.4,3.72193921]
[1772619063501,1.501,2087.4,2086.4,3.72193921]
[1772619064341,3.7225423,2088.7,2086.8,3.72193921]
[1772619064512,0.002,2088.8,2087.2,3.72193921]
[1772619064719,0.002,2088.8,2087.4,3.72193921]
[1772619065242,1.501,2088.6,2087.7,3.72193921]
[1772619066138,0.002,2088.8,2087.7,3.72193921]
[1772619067222,0.002,2088.8,2087.9,3.72193921]
[1772619067531,1.501,2088.8,2087.9,3.72193921]
[1772619068138,0.002,2088.8,2087.9,3.72193921]
[1772619068317,1.498,2088.4,2087.6,1.19750529]
[1772619069016,5.13618941,2088.3,2086.3,3.72193921]
[1772619069334,4.03966879,2088.2,2086.6,3.72193921]
[1772619069511,4.33946546,2088.1,2086.6,3.72193921]
[1772619069711,1.497,2088.1,2086.6,3.72193921]
[1772619070117,1.19720333,2088.2,2086.6,3.72193921]
[1772619070336,4.34079367,2088.1,2086.6,3.72193921]
[1772619070518,5.13518941,2088.1,2086.6,3.72193921]
[1772619070720,1.496,2088.0,2086.6,3.72193921]
[1772619071115,1.496,2088.0,2086.5,1.19817876]
[1772619071116,3.63818941,2087.8,2086.5,1.19817876]
[1772619071314,1.19735405,2088.0,2086.5,3.72193921]
[1772619071510,1.496,2087.9,2086.7,3.72193921]
[1772619072016,3.63818941,2088.2,2086.7,3.72193921]
[1772619072216,4.34085697,2088.1,2086.7,3.72193921]
[1772619072442,2.84626528,2088.0,2086.7,3.72193921]
[1772619073147,1.495,2087.9,2086.7,3.72193921]
[1772619073341,1.1974327,2087.8,2086.8,1.19800651]
[1772619073552,6.48668798,2087.7,2086.3,0.001]
[1772619073719,3.63818941,2087.5,2086.3,0.001]
[1772619073918,3.63818941,2087.3,2086.3,0.001]
[1772619074147,4.34249857,2087.2,2086.3,0.001]
[1772619074351,2.2215423,2087.5,2086.3,1.19928412]
[1772619074547,1.494,2087.1,2086.3,0.001]
[1772619074753,2.2215423,2087.4,2086.3,1.19928678]
[1772619075051,0.065536,2087.2,2086.3,0.001]
[1772619075255,1.19789171,2087.0,2086.3,0.001]
[1772619075452,2.84944062,2086.9,2086.3,0.001]
[1772619076038,1.493,2086.8,2086.3,0.001]
[1772619076730,6.48649373,2086.7,2086.1,0.001]
[1772619076928,7.97949373,2086.6,2086.1,0.001]
[1772619077135,2.84830432,2086.5,2086.1,0.001]
[1772619077336,1.19823619,2086.4,2086.1,0.001]
[1772619077752,1.492,2086.6,2086.1,0.001]
[1772619078052,4.79097427,2087.3,2086.1,0.001]
[1772619078357,4.33792141,2087.2,2086.1,0.001]
[1772619078556,4.33792141,2087.1,2086.1,0.001]
[1772619078755,1.492,2087.1,2086.1,0.001]
[1772619078966,3.37172181,2086.9,2086.1,0.001]
[1772619079162,2.84673698,2086.8,2086.1,0.001]
[1772619079365,3.37172181,2086.6,2085.8,0.001]
[1772619079531,3.37172181,2086.4,2085.8,0.001]
[1772619079730,6.21845879,2086.3,2085.6,0.001]
[1772619079956,4.33873698,2086.2,2085.6,0.001]
[1772619080157,1.492,2086.1,2085.6,0.001]
[1772619080356,1.492,2086.0,2085.6,0.001]
[1772619081445,1.19850035,2086.0,2085.6,0.001]
[1772619081665,1.492,2085.9,2085.6,0.001]
[1772619081955,1.492,2085.8,2085.6,0.001]
[1772619082149,1.1982153,2086.5,2085.6,0.001]
[1772619082352,7.93300129,2086.4,2085.0,3.52156767]
[1772619082555,2.84231789,2086.3,2085.0,3.52156767]
[1772619082744,6.43257857,2086.3,2085.0,3.52156767]
[1772619082942,2.84231789,2086.2,2085.0,3.52156767]
[1772619083357,1.492,2086.1,2085.1,1.19898326]
[1772619083658,1.492,2086.1,2085.0,4.72056564]
[1772619083985,1.492,2086.0,2085.0,3.52156767]
[1772619084164,5.07385758,2086.0,2084.6,4.72082014]
[1772619084352,5.67848861,2085.9,2084.6,4.72082014]
[1772619084666,3.57352025,2085.7,2084.2,4.72106867]
[1772619085235,0.065536,2085.5,2084.2,3.52156767]
[1772619085436,1.19886826,2085.3,2084.1,0.001]
[1772619085657,4.71586154,2085.2,2084.1,0.001]
[1772619086247,2.93,2085.1,2084.1,0.001]
[1772619086582,6.49524182,2085.1,2084.1,0.001]
[1772619087331,1.19904076,2085.0,2084.1,0.001]
[1772619087746,1.491,2084.9,2084.1,3.52256767]
[1772619087952,1.491,2084.8,2084.1,3.52256767]
[1772619088161,4.79544762,2085.4,2084.1,3.52256767]
[1772619088374,2.929,2085.3,2084.1,3.52256767]
[1772619088536,4.79544762,2085.4,2084.1,3.52256767]
[1772619088735,2.929,2085.3,2084.1,3.52256767]
[1772619088955,1.491,2085.2,2084.1,3.52256767]
[1772619089155,1.491,2085.1,2084.1,3.52256767]
[1772619089357,1.491,2085.0,2084.4,3.52156767]
[1772619089867,2.09663103,2085.9,2084.4,3.52156767]
[1772619090072,1.491,2085.8,2084.4,3.52156767]
[1772619090243,1.491,2085.7,2084.8,3.52156767]
[1772619090568,1.491,2085.9,2085.0,3.52156767]
[1772619090955,3.62203721,2086.4,2085.0,3.52156767]
[1772619091162,1.19817876,2086.5,2085.0,3.52156767]
[1772619091364,1.491,2086.3,2085.0,3.52156767]
[1772619091667,1.491,2086.2,2085.2,3.52156767]
[1772619092165,1.491,2086.2,2085.1,1.19898326]
[1772619092366,1.491,2086.2,2084.9,4.79635754]
[1772619092945,5.11303721,2086.2,2084.9,1.19909827]
[1772619093447,3.62203721,2086.2,2084.9,4.72066594]
[1772619093651,2.68840851,2086.1,2084.9,4.72066594]
[1772619094053,8.41675228,2086.6,2085.0,3.52156767]
[1772619094367,1.49,2086.0,2085.0,3.52156767]
[1772619094874,0.065536,2086.4,2085.0,3.52156767]
[1772619095169,1.49,2086.3,2085.0,3.52156767]
[1772619095682,1.49,2086.3,2085.1,1.19898326]
[1772619095683,1.19835106,2086.2,2085.1,1.19898326]
[1772619095854,3.62203721,2086.1,2084.7,4.7967746]
[1772619096768,3.62203721,2085.9,2084.7,4.7967746]
[1772619096975,3.62203721,2085.7,2084.3,4.79755666]
[1772619097874,2.68969581,2085.6,2084.3,8.31912433]
[1772619098280,1.19869581,2085.6,2085.2,0.001]
[1772619098781,1.491,2085.5,2085.0,0.001]
[1772619099574,1.491,2085.5,2084.7,0.001]
[1772619099877,1.19886826,2085.3,2084.7,0.001]
[1772619100250,1.492,2085.2,2084.7,0.001]
[1772619100682,1.492,2085.1,2084.7,0.001]
[1772619101251,1.492,2085.0,2084.7,0.001]
[1772619101485,0.065536,2085.5,2084.7,0.001]
[1772619101655,1.493,2084.9,2084.7,0.001]
[1772619102751,1.494,2084.8,2084.7,0.001]
[1772619103092,1.494,2084.8,2084.1,4.72212623]
[1772619103254,1.494,2084.8,2084.1,1.20055856]
[1772619104153,2.69319008,2084.8,2084.1,1.20055856]
[1772619104457,0.001,2085.1,2084.1,0.001]
[1772619104657,1.494,2085.0,2084.1,3.52256767]
[1772619105362,1.495,2084.9,2084.1,3.52256767]
[1772619105979,0.001,2085.1,2084.2,4.72106867]
[1772619106286,0.001,2085.1,2084.3,3.52156767]
[1772619106287,1.496,2085.1,2084.3,3.52156767]
[1772619107072,1.496,2085.1,2084.2,1.199501]
[1772619107271,1.496,2085.1,2084.1,1.20054849]
[1772619107272,2.85555665,2085.0,2084.1,1.20054849]
[1772619107985,1.19909827,2084.9,2084.1,0.001]
[1772619108160,2.85555665,2084.8,2084.1,0.001]
[1772619108495,0.001,2085.1,2084.1,3.25318766]
[1772619108696,0.001,2085.1,2084.2,3.25218766]
[1772619108697,1.495,2084.9,2084.2,3.25218766]
[1772619108866,0.001,2085.1,2084.2,3.25218766]
[1772619109058,1.495,2085.0,2084.2,3.25218766]
[1772619109256,0.001,2085.1,2084.2,3.25218766]
[1772619109481,1.495,2085.0,2084.2,3.25218766]
[1772619110263,1.495,2085.0,2084.3,1.19944345]
[1772619111187,1.495,2085.0,2084.5,0.001]
[1772619111188,2.85971438,2084.9,2084.5,0.001]
[1772619111409,6.17319027,2084.9,2084.1,0.001]
[1772619111567,2.85971438,2084.8,2084.1,0.001]
[1772619112106,8.39473257,2084.8,2084.1,0.001]
[1772619112406,4.05897125,2084.7,2084.1,0.001]
[1772619112687,2.85971438,2084.6,2084.1,0.001]
[1772619113189,2.85971438,2084.5,2084.1,0.001]
[1772619113388,4.35371438,2084.4,2084.1,0.001]
[1772619113689,1.494,2084.4,2084.1,0.001]
[1772619114070,3.42079917,2084.7,2084.1,0.001]
[1772619114292,1.19932837,2084.5,2084.1,0.001]
[1772619114463,4.35363203,2084.4,2084.1,0.001]